Cogmind - Beta 9.5 @@@ ROGUE MODE // 2020.04.09 @ 02:05:26 // Winter2019/RPGLIKE Player: IAMCRAIG Result: Destroyed by H-55 Commando with Assault Rifle Performance ------------- Evolutions (0) 0 Regions Visited (3) 600 Robots Destroyed (64) 320 Value Destroyed (2077) 2077 Prototype IDs (24) 480 Alien Tech Used (0) 0 Bonus (460) 460 TOTAL SCORE: 3937 Bonus ------- Follower Combat Kills 160 Aligned with FarCom 300 Cogmind --------- Core Integrity 0/1450 Matter 343/500 Energy 155/160 System Corruption 8% Temperature Cool (0) Movement Hovering (76) Location -10/Exiles Parts ------- > --- POWER (1) -------- Light Nuclear Core > --- PROPULSION (2) --- Combat Airjet Combat Airjet > --- UTILITY (5) ------ Improved Heat Sink High-capacity Matter Pod Improved Terrain Scanner Hacking Suite > --- WEAPON (3) ------- Bore Cannon Mini Grenade Launcher Longsword +1 > --- INVENTORY (2) ---- Advanced Treads Advanced Targeting Computer Peak State ------------ > --- POWER ------------ Light Nuclear Core > --- PROPULSION ------- Combat Airjet Combat Airjet > --- UTILITY ---------- Improved Heat Sink High-capacity Matter Pod Improved Terrain Scanner Reflective Plating Hacking Suite > --- WEAPON ----------- High-powered Shotgun Bore Cannon Longsword +1 > --- INVENTORY -------- Advanced Targeting Computer [Rating: 41] Favorites ----------- Power Light Ion Engine Engine Light Ion Engine Power Core Light Nuclear Core Propulsion Light Treads Treads Light Treads Leg Carbon-fiber Leg Hover Unit Combat Airjet Utility Improved Terrain Scanner Device Improved Terrain Scanner Storage High-capacity Matter Pod Processor Seismic Analyzer Hackware Hacking Suite Protection Reflective Plating Weapon Light Assault Rifle Ballistic Gun Light Assault Rifle Ballistic Cannon Bore Cannon Launcher Grenade Launcher Slashing Weapon Longsword +1 Build | -11 -10 -10 -10 ------- Run | Scr Mat Min Exi Slots Evolved 7 | 4 . 2 1 Power . | . . . . Propulsion 1 | 1 . . . Utility 4 | 2 . 2 . Weapon 2 | 1 . . 1 Parts Attached 30 | 8 8 9 5 Power 5 | 1 3 1 . Engine 2 | 1 1 . . Core 3 | . 2 1 . Reactor . | . . . . Propulsion 8 | 2 2 2 2 Treads 5 | 2 2 1 . Leg 1 | . . 1 . Wheel . | . . . . Hover 2 | . . . 2 Flight . | . . . . Utility 7 | 3 1 3 . Device 2 | 1 1 . . Storage 1 | . . 1 . Processor 2 | 2 . . . Hackware 1 | . . 1 . Protection 1 | . . 1 . Artifact . | . . . . Weapon 10 | 2 2 3 3 Energy Gun . | . . . . Energy Cannon . | . . . . Ballistic Gun 3 | 2 . . 1 Ballistic Cannon 2 | . . 2 . Launcher 4 | . 2 1 1 Special Weapon . | . . . . Impact Weapon . | . . . . Slashing Weapon 1 | . . . 1 Piercing Weapon . | . . . . Special Melee Weapon . | . . . . Unidentified Prototypes . | . . . . Parts Lost 1 | . . . 1 Power . | . . . . Propulsion . | . . . . Utility 1 | . . . 1 Weapon . | . . . . Highest Loss Streak 1 | . . . 1 Average Slot Usage (%) 99 | . 100 99 97 Engine 6 | . 6 9 . Core 4 | . 5 . 9 Treads 15 | . 25 12 6 Leg 4 | . . 8 6 Hover 1 | . . . 6 Device 21 | . 22 20 19 Storage 5 | . . 8 9 Processor 6 | . 14 1 . Hackware 5 | . . 8 9 Protection 5 | . . 8 7 Ballistic Gun 6 | . 14 1 1 Ballistic Cannon 9 | . . 16 13 Launcher 4 | . 9 2 2 Slashing Weapon 1 | . . . 5 Naked Turns . | . . . . Heaviest Build 30 | 8 11 30 30 Greatest Support 49 | 45 45 27 49 Greatest Overweight (x) 2 | . 1 2 1 Average Overweight (x) . | . . . . Largest Inventory Capacity 2 | 1 1 2 2 Average Capacity 1 | . 1 1 2 Most Carried 2 | 1 1 2 2 Average Carried 1 | . . 1 1 Final Capacity 2 | 1 1 2 2 Final Carried 2 | 1 1 2 2 Class Distribution -------------------- 57% | Mutant 42% | Scavenger-Mutant Dominant Class ---------------- Scavenger-Mutant | -10/Materials Mutant | -10/Mines Mutant | -10/Exiles Resources | -11 -10 -10 -10 ----------- Run | Scr Mat Min Exi Matter Collected 1393 | 336 511 304 242 Remotely . | . . . . Salvage Created 1550 | 187 530 538 295 Parts 104 | 13 41 16 34 Haulers Intercepted 2 | . 2 . . Recyclers Shooed 5 | . 2 3 . Parts Field Recycled . | . . . . Retrieved Matter . | . . . . Parts Self-Destructed . | . . . . Prevented . | . . . . Kills | -11 -10 -10 -10 ------- Run | Scr Mat Min Exi Combat Hostiles Destroyed 40 | . 12 1 27 Guns 6 | . 6 . . Cannons 4 | . . 1 3 AOE 30 | . 6 . 24 Classes Destroyed 11 | 2 5 . 4 Builder 2 | . 2 . . Tunneler 7 | 5 1 1 . Hauler 2 | . 2 . . Recycler 9 | 1 1 7 . Operator 2 | . 2 . . Watcher 2 | . 2 . . Grunt 24 | . 12 1 11 Brawler 1 | . . . 1 Duelist 1 | . . . 1 Hunter 7 | . . . 7 Programmer 7 | . . . 7 Best Kill Streak 20 | 3 3 4 20 Combat Bots Only 20 | . 2 1 20 Max Kills in Single Turn 3 | 1 2 1 3 Gunslinging . | . . . . Exploded 3 | . 1 . 3 Melee . | . . . . Uniques/NPCs Destroyed . | . . . . Combat | -11 -10 -10 -10 -------- Run | Scr Mat Min Exi Damage Taken 2628 | . 512 . 2116 Core 2092 | . 409 . 1683 Absorbed by Shields . | . . . . Redirected to Core 1520 | . 338 . 1182 Core Remaining (%) 100 | 100 . . . Volleys Fired 164 | 28 81 18 37 Largest 2 | 2 2 2 2 Hottest 101 | 40 40 101 82 Shots Fired 220 | 56 104 21 39 Gun 138 | 56 80 . 2 Cannon 33 | . . 20 13 Launcher 49 | . 24 1 24 Special . | . . . . Kinetic 171 | 56 80 20 15 Thermal . | . . . . Explosive 49 | . 24 1 24 Electromagnetic . | . . . . Robot Hit Streak 14 | 11 14 6 4 Robot Miss Streak 10 | 4 3 3 10 Penetration Max 1 | . . 1 . Secondary Targets 2 | . 2 . . Max Gunslinging Chain 1 | . 1 . . Shots Hit Robots 119 | 40 53 13 13 Core Hits 131 | 11 46 12 62 Critical Hits 12 | . . 9 3 Critical Kills 9 | . . 7 2 Critical Parts Destroyed 3 | . . 2 1 Melee Attacks . | . . . . Impact . | . . . . Slashing . | . . . . Piercing . | . . . . Sneak Attacks . | . . . . Combat Hostiles . | . . . . Follow-up Attacks . | . . . . Damage Inflicted 5102 | 331 1335 365 3071 Guns 822 | 331 438 . 53 Cannons 440 | . . 304 136 Explosions 3795 | . 892 21 2882 Melee . | . . . . Ramming 45 | . 5 40 . Kinetic 1262 | 331 438 304 189 Thermal . | . . . . Explosive 3795 | . 892 21 2882 Electromagnetic . | . . . . Impact . | . . . . Slashing . | . . . . Piercing . | . . . . Highest Corruption 8 | . . . 8 Average Corruption 4 | . . . 4 Corruption Purged . | . . . . Effects 7 | . . . 7 Message Errors 1 | . . . 1 Matter Fused 2 | . . . 2 Heat Flow Errors 1 | . . . 1 Targeting Errors 3 | . . . 3 Overload Shots . | . . . . Overflow Damage 61 | . 34 . 27 Projectiles . | . . . . Explosions 61 | . 34 . 27 Melee . | . . . . Knockbacks 5 | . . 5 . Impact 1 | . . 1 . Kinetic 4 | . . 4 . Secondary . | . . . . Self-Inflicted Damage 65 | . . . 65 Shots 2 | . . . 2 Rammed 9 | . . 9 . Targets Rammed 10 | . 1 9 . Kicked . | . . . . Crushed 1 | . 1 . . Highest Temperature 103 | . 9 12 103 Average Temperature 30 | . 5 6 61 Received Heat Transfer 321 | . 285 . 36 Siege Activations . | . . . . Robots Corrupted . | . . . . Combat Hostiles . | . . . . Parts Fried . | . . . . Impact Corruptions . | . . . . Robots Melted . | . . . . Combat Hostiles . | . . . . Parts Melted . | . . . . Heat Transferred . | . . . . Parts Sabotaged . | . . . . Parts Stolen . | . . . . Parts Stripped . | . . . . Power Chain Reactions . | . . . . Missiles Intercepted . | . . . . Alert | -11 -10 -10 -10 ------- Run | Scr Mat Min Exi Peak Influence 356 | 30 356 143 . Average Influence 123 | 11 193 78 . Maximum Alert Level 1 | . 1 . . Low Security (%) 74 | 100 42 100 . Level 1 25 | . 57 . . Level 2 . | . . . . Level 3 . | . . . . Level 4 . | . . . . Level 5 . | . . . . High Security . | . . . . Max Security . | . . . . Squads Dispatched 5 | . 4 1 . Investigation 3 | . 2 1 . Extermination . | . . . . Reinforcement 2 | . 2 . . Assault . | . . . . Garrison . | . . . . Intercept . | . . . . Construction Impeded . | . . . . Haulers Reinforced . | . . . . Stealth | -11 -10 -10 -10 --------- Run | Scr Mat Min Exi Distress Signals 2 | . 2 . . Communications Jammed . | . . . . Distress Signals . | . . . . Times Spotted 75 | . 28 4 43 Peak Tracking Total 22 | . 5 2 22 Tactical Retreats 4 | . 2 . 2 Traps | -11 -10 -10 -10 ------- Run | Scr Mat Min Exi Traps Triggered 2 | . 2 . . Indirectly . | . . . . Trap Hack Attempts . | . . . . Triggered . | . . . . Disarmed . | . . . . Reprogrammed . | . . . . Reused . | . . . . Traps Extracted . | . . . . Installed . | . . . . Triggered . | . . . . Exploded 2 | . . . 2 Machines | -11 -10 -10 -10 ---------- Run | Scr Mat Min Exi Machines Disabled 15 | . 11 3 1 Max in Single Turn 2 | . 2 1 1 Machines Sabotaged . | . . . . Garrisons Compromised . | . . . . Overloaded Fab Kills . | . . . . Fab Network Shutdowns . | . . . . Hacking | -11 -10 -10 -10 --------- Run | Scr Mat Min Exi Machines Accessed 11 | . 9 1 1 Terminals 6 | . 6 . . Fabricators . | . . . . Repair Stations 1 | . 1 . . Recycling Units 2 | . 2 . . Scanalyzers . | . . . . Garrison Access . | . . . . Total Hacks 37 | . 35 1 1 Successful 20 | . 18 1 1 Failed 17 | . 17 . . Catastrophic . | . . . . Database Lockouts . | . . . . Manual 27 | . 26 . 1 Terminals 23 | . 23 . . Fabricators . | . . . . Repair Stations 4 | . 4 . . Recycling Units 8 | . 8 . . Scanalyzers . | . . . . Garrison Access . | . . . . Terminal Hacks 10 | . 8 1 1 Robot Analysis 3 | . 3 . . Prototype ID Bank 1 | . 1 . . Open Door 1 | . . 1 . Locate Traps 2 | . 2 . . Registered Components 1 | . 1 . . Zone Layout 1 | . 1 . . EX-Prototype ID Bank 1 | . . . 1 Fabricator Hacks . | . . . . Repair Station Hacks 1 | . 1 . . Scan Component 1 | . 1 . . Recycling Unit Hacks 2 | . 2 . . Report Inventory 2 | . 2 . . Scanalyzer . | . . . . Garrison Access Hacks . | . . . . Unauthorized Hacks 23 | . 23 . . Terminals 4 | . 4 . . Botnet 4 | . 4 . . Fabricators . | . . . . Repair Stations . | . . . . Recycling Units 3 | . 3 . . Reject 2 | . 2 . . Mask 1 | . 1 . . Scanalyzers . | . . . . Garrison Access . | . . . . Data Cores Recovered . | . . . . Used . | . . . . Hacking Detections 9 | . 9 . . Full Trace Events 3 | . 3 . . Feedback Events . | . . . . Feedback Blocked . | . . . . Robot Schematics Acquired . | . . . . Robots Built . | . . . . Matter . | . . . . Time . | . . . . Total Robot Build Rating . | . . . . Part Schematics Acquired . | . . . . Parts Built . | . . . . Matter . | . . . . Time . | . . . . Total Part Build Rating . | . . . . Parts Repaired . | . . . . Time . | . . . . Parts Recycled . | . . . . Recycled Matter . | . . . . Retrieved Matter . | . . . . Retrieved Components . | . . . . Parts Scanalyzed . | . . . . Part Schematics Acquired . | . . . . Parts Damaged . | . . . . Bothacking | -11 -10 -10 -10 ------------ Run | Scr Mat Min Exi Used RIF Installer . | . . . . Robots Hacked . | . . . . Non-combat . | . . . . Combat . | . . . . Robot Hacks Applied . | . . . . Relay Couplers Released . | . . . . Robots Rewired . | . . . . Allies Hacked . | . . . . Hacks Repelled . | . . . . Allies | -11 -10 -10 -10 -------- Run | Scr Mat Min Exi Total Allies 3 | . . 3 . Largest Group 3 | . . 3 3 Highest-Rated Group 40 | . . 40 40 Highest-Rated Ally 16 | . . 16 16 Total Orders . | . . . . Ally Attacks 23 | . . 13 10 Total Damage 257 | . . 142 115 Kills 6 | . . 3 3 Allies Corrupted . | . . . . Allies Melted . | . . . . Intel | -11 -10 -10 -10 ------- Run | Scr Mat Min Exi Robot Analysis Total 3 | . 3 . . Derelict Logs Recovered 1 | . . 1 . Drone Launches . | . . . . Drone Recoveries . | . . . . Exploration | -11 -10 -10 -10 ------------- Run | Scr Mat Min Exi Turns Passed 2756 | 145 967 1115 529 Spaces Moved 1909 | 114 753 691 351 Core 938 | 112 663 163 . Treads 688 | 2 90 528 68 Legs 138 | . . . 138 Wheels . | . . . . Hover 145 | . . . 145 Flight . | . . . . Fastest Speed 50 | 50 50 100 76 Average Speed 116 | 51 94 149 122 Slowest Speed 165 | 160 160 165 165 Overloaded Moves . | . . . . Propulsion Burnouts . | . . . . Robots Hopped . | . . . . Cave-ins Triggered . | . . . . Exploration Rate (%) 60 | 4 96 97 43 Regions Visited 3 Branch Regions 2 Pre-discovered Areas . | . . . . Known Exits Taken 1 | . . 1 . Unknown Exits Taken 2 | 1 1 . . Scrap Searched 1 | . . 1 . Spaces Dug 8 | . 8 . . Terrain Destroyed 208 | . 105 19 84 Melee . | . . . . Projectile 21 | . . 9 12 AOE 187 | . 105 10 72 Actions | -11 -10 -10 -10 --------- Run | Scr Mat Min Exi Total 2230 | 150 919 748 413 Wait 63 | . 60 2 1 Move 1906 | 113 752 690 351 Hop . | . . . . Pick Up 5 | 1 1 2 1 Fast Attach 26 | 8 7 7 4 Attach 1 | . . . 1 Detach 1 | . 1 . . Swap 3 | . 1 2 . Drop 15 | . 5 6 4 Fire 164 | 28 81 18 37 Melee . | . . . . Ram . | . . . . Kick . | . . . . Crush 10 | . 1 9 . Escape Stasis . | . . . . Rewire . | . . . . Trap . | . . . . Miscellaneous 36 | . 10 12 14 Route ------- -11/Scrapyard -10/Materials (discovered 4 exits: [*Mat x3] / *Min) -10/Mines (discovered 2 exits: [*Mat] / *Exi) -10/Exiles (discovered 1 exit: [*Min]) History --------- Turn | Location | Event 3 | -11/Scrapyard | Upgraded with Propulsion slot (x1) 3 | -11/Scrapyard | Upgraded with Utility slot (x1) 3 | -11/Scrapyard | Upgraded with Weapon slot (x1) 4 | -11/Scrapyard | Discovered new exit (range 15) 135 | -11/Scrapyard | Upgraded with Utility slot (x1) 146 | -11/Scrapyard | Entered Materials 360 | -10/Materials | Discovered new exit (range 15) 450 | -10/Materials | Discovered new exit (range 15) 599 | -10/Materials | Build established: Scavenger-Mutant 600 | -10/Materials | Reached level 2 680 | -10/Materials | Discovered new exit (range 13) 713 | -10/Materials | Discovered new exit (range 3) 872 | -10/Materials | Core integrity fell below 50% 1113 | -10/Materials | Entered Mines 1147 | -10/Mines | Reached level 3 1168 | -10/Mines | Assisted by bots powering up and referring to "LRC-V3" 1216 | -10/Mines | Identified exit to Exiles 1254 | -10/Mines | Met a Derelict shopkeep closing up shop 1261 | -10/Mines | Upgraded with Utility slot (x2) 1344 | -10/Mines | A weapon hastily lodged in a ceiling crevice suddenly fell to the ground 1423 | -10/Mines | Discovered new exit (range 15) 1562 | -10/Mines | Build established: Mutant 1718 | -10/Mines | Deemed a non-threat by the Exiles lab entrance 2228 | -10/Mines | Entered Exiles 2228 | -10/Exiles | Accompanied by 3 allies 2268 | -10/Exiles | Met 8R-AWN 2299 | -10/Exiles | Met EX-HEX 2353 | -10/Exiles | Met EX-BIN 2375 | -10/Exiles | Aligned with FarCom system 2377 | -10/Exiles | Given EX-Vault access code 2417 | -10/Exiles | Opened EX-Vault 2443 | -10/Exiles | Found Longsword +1 2478 | -10/Exiles | Warned to stay clear of 0b10 Research branches 2480 | -10/Exiles | Exiles lab attacked by MAIN.C 2550 | -10/Exiles | Reached level 4 2554 | -10/Exiles | Upgraded with Weapon slot (x1) 2579 | -10/Exiles | Discovered new exit (range 10) 2597 | -10/Exiles | P-60 Hacker assimilated allied Mercenary 1a 2630 | -10/Exiles | Reached level 5 2636 | -10/Exiles | Core integrity fell below 20% 2670 | -10/Exiles | Destroyed 20 combat bots 2757 | -10/Exiles | Destroyed by H-55 Commando with Assault Rifle Last Messages --------------- 02743_ Aluminum Leg crushed. 02743_ Penetrated by Slug. 02743_ HV Slug penetrates H-55 Commando. 02743_ H-55 Commando suffers critical hit. 02743_ H-55 Commando destroyed. 02745_ The unstable cave ceiling collapses. 02745_ Penetrated by Slug. 02745_ HV Slug penetrates P-60 Hacker. 02745_ Slug penetrates Earth. 02747_ System corrupted: Bore Cannon targeting data glitched. 02749_ The unstable cave ceiling collapses. 02749_ HV Slug penetrates P-60 Hacker. 02749_ P-60 Hacker suffers critical hit. 02749_ P-60 Hacker destroyed. 02751_ Penetrated by Slug. 02753_ G-34 Mercenary destroyed. 02754_ The unstable cave ceiling collapses. 02754_ Slug penetrates Earth. 02755_ Upgraded: Core Integrity (+50) 02757_ Penetrated by Slug. Map ----- +----------------------------------------------------+ | ?????????????????????????????????????????????????? | | ????????????????????????????????????????????????? | | ?????????????????????????????????????????????????? | | ?????????????????????????????????????????????????? | | ?????????????????????????????????#??????????????? | | ?????????????????????????????????#???????????????? | | ?"???????????????????????????????????????????????? | | ???????????????????#??????????????????????####???? | | ?#??????????????????#?#??????????#???????## #???? | | ?????????#??????????#?????????#????????### #???? | | ???????###?????#???#?????##????#????????# < #???? | | ###??????#??#?#???#????????#????#???????# #???? | | """"##?????????#????#??#????????????????# = #???? | | """"##???#?????????#???#???#????###??###*%!#????? | | " #????????#???#????#?#???????????## [ ##?#?? | | """#??#???#???#?#?#????????????????# #???? | | " "#??????????######???##????###??## #???? | | " "##??????#??##" ########## #### #??#? | | ""###?#?##??#" ## # ## h # #???? | | """#??????## ## # =h= ###???? | | "##???### = # ! * ##??##?? | | ##???# [=*[%*= # = [ = #????#?? | | ##### =*[[= = = ##??????# | | # =! = = *= = =%= ##???#??? | | ![ [ [ = = ##?????? | | *### @ * ##?????? | | #?# ###???? | | ###### # # # ###?? | | # # #?#??# ######; ##? | | #######????##########?##?### #? | | ##??#??#????##??##???#?#????### #? | | " ""##????????????????#????#??????### #? | | " "##??????#???#????#??????#?#?????#" ## | | #"""""""##?#?#?????#???##????#??????#???##### # | | #########??????????????????#????????????????# | | ????#?#????????????#????###?#?#???#??#??????## | | ??????##????????????#?#?#??##????????????????### | | ???????????????????????###??###?#??????????????# | | ??????????????????#??????????#?????????????????## | | ????????????????????????????????????????#???????## | | ?????????????????????????????????????????????????? | | ?????????????????????????????????????????????????? | | ?????????????????????????????????????????????????? | | ???????????????????????????????????????#?????????? | | ?????????????????????????????????????????????????? | | ????????????????????????????????????????????????#? | | ?????????????????????????????????????????????????? | | ?????????????????????????????????????????????????? | | ????????????????????????????????????????????#????? | | ?????????????????????????????????????????????????? | +----------------------------------------------------+ Best States ------------- Heat Dissipation 39 Energy Generation 14 Energy Capacity 250 Matter Stores 500 Matter Capacity 500 Sight Range 16 Terrain Scan Range 16 Terrain Scan Density 110 Armor Coverage 150 Resistance: KI 10 Resistance: TH 10 Evasion (%) 50 Recoil Reduction 2 Offensive Hacking 10 Defensive Hacking 5 Item Schematics ----------------- None Robot Schematics ------------------ None Fabricated ------------ Nothing Alien Tech Used ----------------- None Achievements -------------- None Challenges ------------ None RPGLIKE | -11 -10 -10 -10 --------- Run | Scr Mat Min Exi Levels Raised 4 | . 1 1 2 XP Earned 9900 | 3000 2495 1346 3059 XP Spent 8935 | 2650 200 3000 3085 Upgrades 30 | 6 1 3 20 Propulsion Slot 1 | 1 . . . Utility Slot 4 | 2 . 2 . Weapon Slot 2 | 1 . . 1 Core Integrity 17 | . . . 17 Mass Support 1 | 1 . . . Inventory Capacity 2 | 1 . 1 . Hack Defense % 1 | . 1 . . KI Resistance % 2 | . . . 2 Protomatter Created 320 | . 137 . 183 Integrity Restored 697 | . 188 255 254 Core 640 | . 163 246 231 Parts 57 | . 25 9 23 Protomatter Decayed 120 | . 48 . 72 Game ------ Seed GatlingScatterFacilitator Manual? 0 Play Time 00:31:12 Cumulative 138.1 hours Start 2020.04.09 @ 01:33:37 End 2020.04.09 @ 02:05:26 Sessions 1 Manual Loads 0 Difficulty Rogue Special Mode Winter2019/RPGLIKE Game No. 50 Rogue 50 Adventurer 0 Explorer 0 Win Type - Total 1 Types 1/0/0/0/0/0/0 Lore% 57 Gallery% 68 Achievement% 62 Wizard Run 0 Options --------- ASCII 1 Keyboard 1 Movement Numpad Keybinds 0 Fullscreen 1 Font 16/SmallcapsGlow Map View 75x55 Tactical HUD 1 Map Filters NONE Filters NONE Steam 1 RUN: 79d9f55f-ad1b-4a6c-bba6-4eb06480346a